Cogmind - Beta 16 @@@ ROGUE MODE // 2026.01.01 @ 19:45:32 Player: artema Result: Destroyed by S-10 Pest with Light Assault Rifle Performance ------------- Evolutions (1) 500 Regions Visited (2) 400 Robots Destroyed (28) 140 Value Destroyed (673) 673 Prototype IDs (0) 0 Alien Tech Used (0) 0 Bonus (8) 8 TOTAL SCORE: 1721 Bonus ------- High Alert Combat Kills 8 Cogmind --------- Core Integrity 0/400 Matter 202/300 Energy 98/100 System Corruption 0% Temperature Cool (0) Movement Core (50) Location -9/Materials Parts ------- > --- POWER (2) -------- (None) > --- PROPULSION (2) --- (None) > --- UTILITY (2) ------ Signal Interpreter > --- WEAPON (3) ------- (None) > --- INVENTORY (5) ---- (None) Peak State ------------ > --- POWER ------------ Ion Engine > --- PROPULSION ------- Aluminum Leg Aluminum Leg > --- UTILITY ---------- Signal Interpreter Tractor Beam > --- WEAPON ----------- Medium Laser Small Laser > --- INVENTORY -------- Aluminum Leg Assault Rifle Grenade Launcher Welding Torch [Rating: 7] Favorites ----------- Power Ion Engine Engine Ion Engine Propulsion Aluminum Leg Leg Aluminum Leg Utility Signal Interpreter Device Tractor Beam Processor Signal Interpreter Weapon Assault Rifle Energy Gun Medium Laser Ballistic Gun Assault Rifle Launcher Grenade Launcher Special Weapon Welding Torch Build | -11 -10 -9 ------- Run | Yrd Mat Mat Slots Evolved 2 | . . 2 Power 1 | . . 1 Propulsion . | . . . Utility . | . . . Weapon 1 | . . 1 Parts Attached 12 | 6 6 . Power 2 | 2 . . Engine 2 | 2 . . Core . | . . . Reactor . | . . . Propulsion 3 | 2 1 . Treads . | . . . Leg 3 | 2 1 . Wheel . | . . . Hover . | . . . Flight . | . . . Utility 2 | . 2 . Device 1 | . 1 . Storage . | . . . Processor 1 | . 1 . Hackware . | . . . Protection . | . . . Artifact . | . . . Weapon 5 | 2 3 . Energy Gun 2 | 2 . . Energy Cannon . | . . . Ballistic Gun 1 | . 1 . Ballistic Cannon . | . . . Launcher 1 | . 1 . Special Weapon 1 | . 1 . Impact Weapon . | . . . Slashing Weapon . | . . . Piercing Weapon . | . . . Special Melee Weapon . | . . . Unidentified Prototypes . | . . . Parts Lost 10 | . 7 3 Power 1 | . 1 . Propulsion 3 | . 2 1 Utility 1 | . 1 . Weapon 5 | . 3 2 Highest Loss Streak 5 | . 5 3 To Critical Strikes . | . . . Average Backups 1 | 2 2 . Power . | . . . Propulsion . | 1 . . Utility . | . . . Weapon . | . . . Tool/Special . | . . . Unused Backups 2 | . 2 . Power . | . . . Propulsion 2 | . 2 . Utility . | . . . Weapon . | . . . Tool/Special . | . . . Average Slot Usage (%) 55 | . 60 25 Engine 3 | . 4 . Leg 15 | . 17 5 Device 2 | . 2 . Processor 10 | . 10 11 Energy Gun 9 | . 10 . Ballistic Gun 6 | . 7 4 Launcher 2 | . 3 . Special Weapon 4 | . 4 4 Peak Build Rating 7 | 5 7 4 Average Rating 3 | 3 4 2 On Entrance 3 | . 5 4 Avg Prop Armor Cover (%) . | . . . Naked Turns . | . . . Heaviest Build 9 | 8 9 3 Greatest Support 20 | 20 20 10 Greatest Overweight (x) . | . . . Average Overweight (x) . | . . . Largest Inventory Capacity 5 | 5 5 5 Average Capacity 5 | 5 5 5 Most Carried 5 | 5 5 . Average Carried 1 | 2 2 . Final Capacity 5 | 5 5 5 Final Carried 5 | 5 . . Class Distribution -------------------- 100% | Mutant Dominant Class ---------------- Mutant | -10/Materials Mutant | -9/Materials Resources | -11 -10 -9 ----------- Run | Yrd Mat Mat Matter Collected 381 | 250 116 15 Remotely 20 | . 20 . Salvage Created 743 | 37 691 15 Parts 42 | 2 39 1 Haulers Intercepted 1 | . 1 . Recyclers Shooed . | . . . Parts Field Recycled . | . . . Retrieved Matter . | . . . Parts Self-Destructed . | . . . Prevented . | . . . Parts Restored . | . . . Kills | -11 -10 -9 ------- Run | Yrd Mat Mat Combat Hostiles Destroyed 18 | 1 16 1 Guns 11 | 1 9 1 AOE 7 | . 7 . Classes Destroyed 8 | 1 7 . Worker 3 | . 3 . Builder 1 | . 1 . Tunneler 1 | . 1 . Hauler 1 | . 1 . Recycler 1 | . 1 . Watcher 3 | . 3 . Swarmer 4 | . 3 1 Grunt 14 | 1 13 . Best Kill Streak 9 | 1 9 1 Combat Bots Only 5 | 1 5 1 Max Kills in Single Turn 3 | 1 3 1 Gunslinging . | . . . Exploded 2 | . 2 . Melee . | . . . Uniques/NPCs Destroyed . | . . . Combat | -11 -10 -9 -------- Run | Yrd Mat Mat Hostile Shots Fired 185 | 2 95 88 Missed 50 | . 22 28 Hits 135 | 2 73 60 Projectile 135 | 2 73 60 Damage Taken 1344 | 21 832 491 Core 642 | . 234 408 Absorbed by Shields . | . . . Core Remaining (%) 53 | 100 6 . Volleys Fired 64 | 2 61 1 Largest 2 | 2 2 1 Hottest 90 | 90 90 20 Shots Fired 97 | 4 92 1 Gun 78 | 4 73 1 Cannon . | . . . Launcher 11 | . 11 . Special 8 | . 8 . Kinetic 24 | . 23 1 Thermal 62 | 4 58 . Explosive 11 | . 11 . Electromagnetic . | . . . Robot Hit Streak 8 | 2 8 2 Robot Miss Streak 3 | 1 3 . Penetration Max . | . . . Secondary Targets 1 | . 1 . Max Gunslinging Chain 1 | . 1 . Shots Hit Robots 55 | 2 52 1 Core Hits 42 | 2 39 1 Critical Kills . | . . . Critical Parts Destroyed . | . . . Critical Strikes 2 | . 2 . Burn 2 | . 2 . Melee Attacks . | . . . Impact . | . . . Slashing . | . . . Piercing . | . . . Sneak Attacks . | . . . Combat Hostiles . | . . . Follow-up Attacks . | . . . Damage Inflicted 1615 | 24 1581 10 Guns 631 | 24 597 10 Cannons . | . . . Explosions 980 | . 980 . Melee . | . . . Ramming . | . . . Kinetic 211 | . 201 10 Thermal 424 | 24 400 . Explosive 980 | . 980 . Electromagnetic . | . . . Impact . | . . . Slashing . | . . . Piercing . | . . . Highest Corruption . | . . . Average Corruption . | . . . Corruption Purged . | . . . Corruption Blocked . | . . . Overload Shots . | . . . Overflow Damage 94 | . 94 . Projectiles . | . . . Explosions 94 | . 94 . Melee . | . . . Knockbacks . | . . . Impact . | . . . Kinetic . | . . . Secondary . | . . . Self-Inflicted Damage 39 | . 39 . Shots 1 | . 1 . Rammed 1 | . . 1 Targets Rammed 1 | . . 1 Kicked . | . . . Crushed . | . . . Highest Temperature 404 | 72 404 . Average Temperature 176 | 42 187 . Received Heat Transfer 402 | 12 360 30 Effects 1 | . 1 . Damage (minor) 1 | . 1 . Siege Activations . | . . . Martial Activations . | . . . Shielding Activations . | . . . Robots Disrupted . | . . . Combat Hostiles . | . . . Robots Corrupted . | . . . Combat Hostiles . | . . . Parts Fried . | . . . Impact Corruptions . | . . . Robots Melted . | . . . Combat Hostiles . | . . . Parts Melted 3 | . 3 . Heat Transferred 1348 | 62 1286 . Parts Sabotaged . | . . . Parts Stolen . | . . . Parts Stripped . | . . . Power Chain Reactions . | . . . Alert | -11 -10 -9 ------- Run | Yrd Mat Mat Maximum Alert Level 2 | . 2 . Low Security (%) 74 | 100 65 100 Level 1 23 | . 32 . Level 2 2 | . 2 . Level 3 . | . . . Level 4 . | . . . Level 5 . | . . . High Security . | . . . Max Security . | . . . Peak Influence 405 | 20 405 160 Initial 150 | . 6 150 Average 146 | 3 176 137 Influence Increases 729 | 20 644 65 Destroy 0b10 Robot/C 360 | 20 320 20 Destroy 0b10 Robot/NC 50 | . 50 . Destroy Leader 78 | . 78 . Successful Hack 6 | . 6 . Disable Machine 90 | . 90 . Destroy Structure 100 | . 100 . Lose Combat Pursuer 45 | . . 45 Influence Decreases 584 | 10 298 276 Entered New Map 210 | . 4 206 Time Decay 274 | 10 224 40 Lost Part 100 | . 70 30 Squads Dispatched 4 | . 4 . Investigation 2 | . 2 . Extermination . | . . . Reinforcement 2 | . 2 . Assault . | . . . Garrison . | . . . Intercept . | . . . Searches Triggered . | . . . Construction Impeded . | . . . Haulers Reinforced . | . . . Active Scanning Responses . | . . . Cargo Convoy Interrupts . | . . . Stealth | -11 -10 -9 --------- Run | Yrd Mat Mat Distress Signals . | . . . Communications Jammed . | . . . Distress Signals . | . . . Times Spotted 29 | 1 20 8 Peak Tracking Total 5 | 1 4 5 Tactical Retreats 1 | . . 1 Traps | -11 -10 -9 ------- Run | Yrd Mat Mat Traps Triggered 1 | . 1 . Indirectly . | . . . Trap Hack Attempts . | . . . Triggered . | . . . Disarmed . | . . . Reprogrammed . | . . . Reused . | . . . Traps Extracted . | . . . Installed . | . . . Triggered . | . . . Machines | -11 -10 -9 ---------- Run | Yrd Mat Mat Machines Disabled 6 | . 6 . Max in Single Turn 1 | . 1 . Machines Repaired . | . . . Machines Dismantled . | . . . Machines Sabotaged . | . . . Overloaded Fab Kills . | . . . Hacking | -11 -10 -9 --------- Run | Yrd Mat Mat Machines Accessed 2 | . 2 . Terminals 1 | . 1 . Fabricators . | . . . Repair Stations . | . . . Recycling Units 1 | . 1 . Scanalyzers . | . . . Garrison Access . | . . . Total Hacks 12 | . 12 . Successful 10 | . 10 . Failed 1 | . 1 . Catastrophic . | . . . Database Lockouts 1 | . 1 . Manual 3 | . 3 . Terminals 5 | . 5 . Fabricators . | . . . Repair Stations . | . . . Recycling Units 7 | . 7 . Scanalyzers . | . . . Garrison Access . | . . . Terminal Hacks 3 | . 3 . Record 3 | . 3 . Fabricator Hacks . | . . . Repair Station Hacks . | . . . Recycling Unit Hacks 7 | . 7 . Recycle Component 1 | . 1 . Process 1 | . 1 . Report Inventory 3 | . 3 . Retrieve Matter 1 | . 1 . Retrieve Components 1 | . 1 . Scanalyzer . | . . . Garrison Access Hacks . | . . . Unauthorized Hacks . | . . . Terminals . | . . . Fabricators . | . . . Repair Stations . | . . . Recycling Units . | . . . Scanalyzers . | . . . Garrison Access . | . . . Data Cores Recovered . | . . . Used . | . . . Hacking Detections 2 | . 2 . Full Trace Events 2 | . 2 . Feedback Events . | . . . Feedback Blocked . | . . . Robot Schematics Acquired . | . . . Robots Built . | . . . Authchips . | . . . Time . | . . . Total Robot Build Rating . | . . . Part Schematics Acquired . | . . . Parts Built . | . . . Authchips . | . . . Time . | . . . Total Part Build Rating . | . . . Part Studies Acquired . | . . . Parts Repaired . | . . . Time . | . . . Parts Recycled 1 | . 1 . Recycled Matter . | . . . Retrieved Matter . | . . . Retrieved Components . | . . . Parts Scanalyzed . | . . . Part Schematics Acquired . | . . . Parts Damaged . | . . . Bothacking | -11 -10 -9 ------------ Run | Yrd Mat Mat Used RIF Installer . | . . . Robots Hacked . | . . . Non-combat . | . . . Combat . | . . . Robot Hacks Applied . | . . . Relay Couplers Released . | . . . Fabnet Peak Effective % . | . . . Robots Rewired . | . . . Allies Hacked . | . . . Hacks Repelled . | . . . Allies | -11 -10 -9 -------- Run | Yrd Mat Mat Total Allies . | . . . Largest Group . | . . . Highest-Rated Group . | . . . Highest-Rated Ally . | . . . Total Orders . | . . . Ally Attacks . | . . . Total Damage . | . . . Kills . | . . . Allies Corrupted . | . . . Allies Melted . | . . . Intel | -11 -10 -9 ------- Run | Yrd Mat Mat Active Infowar (turns) . | . . . Robot Analysis Total . | . . . Derelict Logs Recovered . | . . . Drone Launches . | . . . Drone Recoveries . | . . . Exploration | -11 -10 -9 ------------- Run | Yrd Mat Mat Turns Passed 774 | 113 568 93 Spaces Moved 603 | 98 371 134 Core 200 | 38 61 101 Treads . | . . . Legs 403 | 60 310 33 Wheels . | . . . Hover . | . . . Flight . | . . . Fastest Speed 50 | 50 50 50 Average Speed 96 | 92 108 67 Slowest Speed 120 | 120 120 120 Overloaded Moves . | . . . Propulsion Burnouts . | . . . Robots Hopped . | . . . Potential Cave-ins . | . . . Cave-ins Triggered . | . . . Exploration Rate (%) 33 | 9 74 17 Regions Visited 2 Branch Regions . Pre-discovered Areas . | . . . Known Exits Taken 1 | . 1 . Unknown Exits Taken 1 | 1 . . Scrap Searched . | . . . Spaces Dug . | . . . Terrain Destroyed 102 | . 102 . Melee . | . . . Projectile . | . . . AOE 102 | . 102 . Terrain Rammed . | . . . Walls Destroyed . | . . . Machines Disabled . | . . . Actions | -11 -10 -9 --------- Run | Yrd Mat Mat Total 694 | 114 444 136 Wait 3 | 2 1 . Move 601 | 97 370 134 Hop . | . . . Pick Up 11 | 7 4 . Fast Attach 3 | 3 . . Attach 8 | 2 6 . Detach . | . . . Swap 1 | 1 . . Drop 2 | . 2 . Fire 64 | 2 61 1 Melee . | . . . Ram 1 | . . 1 Kick . | . . . Crush . | . . . Escape Stasis . | . . . Rewire . | . . . Trap . | . . . Miscellaneous . | . . . Route ------- -11/Scrapyard -10/Materials (discovered 3 exits: *Mat x2 / [*Min]) -9/Materials History --------- Turn | Location | Event 2 | -11/Scrapyard | Met Revision 17 79 | -11/Scrapyard | Discovered new exit (range 8) 114 | -11/Scrapyard | Entered Materials 183 | -10/Materials | Central database locked down 313 | -10/Materials | Build established: Mutant 326 | -10/Materials | Core integrity fell below 50% 350 | -10/Materials | Lost 5 parts (1p2n1u1w) 371 | -10/Materials | Discovered new exit (range 15) 493 | -10/Materials | Discovered new exit (range 16) 508 | -10/Materials | Core integrity fell below 20% 649 | -10/Materials | Discovered new exit (range 12) 681 | -10/Materials | Identified exit to Materials 682 | -10/Materials | Entered another Materials area 682 | -9/Materials | Evolved 2 slots: Power x1, Weapon x1 747 | -9/Materials | Core integrity fell below 50% 755 | -9/Materials | Lost 3 parts (1n2w) 768 | -9/Materials | Core integrity fell below 20% 775 | -9/Materials | Destroyed by S-10 Pest with Light Assault Rifle Last Messages --------------- 00576_ K-01 Serf collects debris. 00592_ W-16 Scout destroyed. 00621_ T-07 Excavator is excavating. 00649_ EXIT=FOUND 00681_ EXIT=IDENTIFIED: MATERIALS [Achievement: Close Call] PARAMETERS=POWER+1,WEAPON+1 LOCATION=MATERIALS GOAL=ESCAPE 00710_ S-10 Pest destroyed. 00711_ Assault Rifle destroyed. 00718_ Welding Torch destroyed. 00720_ Acquired 15 matter. 00724_ Aluminum Leg destroyed. 00727_ R-06 Scavenger collects Flight Unit. 00764_ K-01 Serf collects debris. 00773_ Slammed into S-10 Pest. 00773_ Signal Interpreter broken. 00773_ Destabilizing: Short circuit. 00773_ K-01 Serf collects debris. Map ----- +----------------------------------------------------+ | ???????????????????????????????????????????????# | | ???????????????????????? ????????? ????????# | | ??????????????????????? ????????# #???????# | | ???????????????????????# ????????# #???????# | | ???????????????????????# ????????# +???????# | | ???????????????????????# ????????# #????????? | | ???????????????????????+ ????????# #?????????? | | ???????????????????????# ????????# #?????????? | | ???????????????????????# #???????# #?????????? | | ???????????????????????# #???????# #?????????? | | ???????????????????????# #???????# #?????????? | | ???????????????????????# #???????# #?????????? | | ???????????????????????# #???????# #?????????? | | ???????????????????????# #???????# #?????????? | | ???????????????????????# ######### #######+### | | ???????????????????????# | | ??????????????????####?# | | ?????????????????? ?# | | ??????????????????"""" # ######### #######+### | | ??????????????????"""" # #???????# #???? ? | | ??????????????????"""" / #???????# #???# | | ?????????????? # #???????# #???# """ | | ?????????????# ! ] # #???????# #???# """ | | ?????????????# ?# #???????# #???# """ | | ?????????????# ??# #???????# #???# | | ?????????????########### @ #???????# #???####### | | ?????????????# # #???????# #?????????? | | ?????????????# ss #???????+ +?????????? | | ?????????????# s# #???????# #?????????? | | ?????????????# # #???????# #?????????? | | ?????????????###########k #???????# #?????????? | | ????????????????????#####g#####????# ??????????? | | ????????????????????# """m""" #????? ??????????? | | ????????????????????# """ """ #??????????????????? | | ????????????????????# """ """ #??????????????????? | | ????????????????????# #??????????????????? | | ????????????????????# #??????????????????? | | ????????????????????# #??????????????????? | | ????????????????????# #??????????????????? | | ????????????????????# #??????????????????? | | ????????????????????#########+#??????????????????? | | ?????????????????????????????????????????????????? | | ?????????????????????????????????????????????????? | | ?????????????????????????????????????????????????? | | ?????????????????????????????????????????????????? | | ?????????????????????????????????????????????????? | | ?????????????????????????????????????????????????? | | ?????????????????????????????????????????????????? | | ?????????????????????????????????????????????????? | | ?????????????????????????????????????????????????? | +----------------------------------------------------+ Best States ------------- Heat Dissipation 28 Energy Generation 10 Energy Capacity 250 Matter Stores 300 Matter Capacity 300 Sight Range 16 Terrain Scan Density 10 Evasion (%) 55 Item Schematics ----------------- None Robot Schematics ------------------ None Fabricated ------------ Nothing Repaired ---------- Nothing Studied --------- None Alien Tech Used ----------------- None Achievements -------------- Close Call Loot Pinata Overwhelming Challenges ------------ None Game ------ Seed StorageAbsorptionSplitter Manual? 0 Play Time 00:40:58 Cumulative 1.1 hours Start 2026.01.01 @ 18:55:38 End 2026.01.01 @ 19:45:32 Sessions 1 Manual Loads 0 Difficulty Rogue Special Mode None Game No. 3 Rogue 3 Adventurer 0 Explorer 0 Win Type - Total 0 Types 0/0/0/0/0/0/0/0/0/0 Lore% 0 Gallery% 1 Achievement% 3 Wizard Run 0 Options --------- Layout 1 ASCII 0 Keyboard 1 Movement Arrows Keybinds 0 Fullscreen 2 Font 48/Terminus Map View 50x35 Zoom Use 0% Tactical HUD 1 Map Filters NONE Filters NONE Steam 1 RUN: b050e1db-07c9-4c2c-8251-2d351a66b351